fUSD/lending_fUSD_20251222
["ID","MTS","AMOUNT","RATE_DAILY","PERIOD"]
[399471080,1766395832174,-500.0,0.00013643,2]
[399471081,1766395832184,-500.0,0.00013643,2]
[399471082,1766395832193,-201.72114218,0.00013643,2]
[399471083,1766395832203,-500.0,0.00013643,2]
[399471084,1766395832212,-165.49824072,0.00013643,2]
[399471085,1766395832222,-162.91531541,0.00013643,2]
[399471086,1766395832231,-500.0,0.00013643,2]
[399471087,1766395832240,-160.27643791,0.00013643,2]
[399471088,1766395832250,-500.0,0.00013643,2]
[399471089,1766395832260,-500.0,0.00013643,2]
[399471090,1766395832270,-500.0,0.00013643,2]
[399471091,1766395832279,-276.5402013,0.00013643,2]
[399471092,1766395832288,-165.36365012,0.00013643,2]
[399471093,1766395832298,-500.0,0.00013643,2]
[399471094,1766395832308,-168.65037374,0.00013643,2]
[399471095,1766395832318,-500.0,0.00013643,2]
[399471096,1766395832327,-1000.0,0.00013693,2]
[399471097,1766395832336,-166.66,0.00013699,2]
[399471098,1766395832346,-1000.0,0.00013699,2]
[399471099,1766395832355,-612.93,0.00013699,2]
[399471100,1766395832364,-500.0,0.00013699,2]
[399471101,1766395832373,-500.0,0.00013699,2]
[399471102,1766395832383,-500.0,0.00013699,2]
[399471103,1766395832392,-500.0,0.00013699,2]
[399471104,1766395832401,-500.0,0.00013699,2]
[399471105,1766395832411,-500.0,0.00013699,2]
[399471106,1766395832422,-500.0,0.00013699,2]
[399471107,1766395832431,-500.0,0.00013699,2]
[399471108,1766395832441,-500.0,0.00013699,2]
[399471109,1766395832450,-500.0,0.00013699,2]
[399471110,1766395832460,-500.0,0.00013699,2]
[399471111,1766395832469,-500.0,0.00013699,2]
[399471112,1766395832478,-500.0,0.00013699,2]
[399471113,1766395832487,-500.0,0.00013699,2]
[399471114,1766395832497,-500.0,0.00013699,2]
[399471115,1766395832506,-500.0,0.00013699,2]
[399471116,1766395832516,-571.81539924,0.00013699,2]
[399471117,1766395832526,-500.0,0.00013699,2]
[399471118,1766395832535,-500.0,0.00013699,2]
[399471119,1766395832545,-500.0,0.00013699,2]
[399471120,1766395832554,-359.51458071,0.00013917,2]
[399471121,1766395832563,-150.0,0.0001394,2]
[399471122,1766395832572,-166.66,0.00013961,2]
[399471123,1766395832582,-1500.0,0.00014,2]
[399471124,1766395832591,-1050.83828415,0.00014,2]
[399471125,1766395832600,-381.58206812,0.0001409,2]
[399471126,1766395832610,-181.31249741,0.0001409,2]
[399471127,1766395832620,-49347.5913195,0.00014091,2]
[399471128,1766395832639,-436.78958862,0.00014091,2]
[399471129,1766395832651,-310.5,0.00014091,2]
[399471130,1766395832662,-679.07564786,0.00014091,2]
[399471131,1766395838001,-500.0,0.0001409,2]
[399471132,1766395838010,-854281.51533429,0.00014091,2]
[399471133,1766395838021,-881.42399107,0.00014091,2]
[399471134,1766395838033,-94063.10411866,0.00014091,2]
[399471135,1766395838043,-561.80172021,0.00014091,2]
[399471136,1766395838052,-1000.0,0.00014191,2]
[399471137,1766395838062,-159.366475,0.00014191,2]
[399471138,1766395838072,-1000.0,0.00014191,2]
[399471139,1766395838082,-1000.0,0.00014191,2]
[399471140,1766395838091,-1000.0,0.00014191,2]
[399471141,1766395838101,-1000.0,0.00014191,2]
[399471142,1766395838110,-752.62378958,0.00014191,2]
[399471147,1766395840029,-500.0,0.00013699,2]
[399471148,1766395840038,-95.42568765,0.00013699,2]
[399471149,1766395840086,-523.66491227,0.00013699,2]
[399471150,1766395840096,-247.37621042,0.00014191,2]
[399471151,1766395840105,-1000.0,0.00014191,2]
[399471152,1766395840114,-1000.0,0.00014191,2]
[399471153,1766395840124,-1000.0,0.00014191,2]
[399471154,1766395840133,-562.43328901,0.00014191,2]
[399471155,1766395840143,-1000.0,0.00014191,2]
[399471156,1766395840152,-866.5623891,0.00014191,2]
[399471157,1766395840163,-1000.0,0.00014191,2]
[399471158,1766395840174,-644.6648404,0.00014191,2]
[399471159,1766395840183,-1000.0,0.00014191,2]
[399471160,1766395840193,-721.96410151,0.00014191,2]
[399471161,1766395840227,-278.03589849,0.00014191,2]
[399471162,1766395840236,-484.24574485,0.00014191,2]
[399471163,1766395840247,-235.68882783,0.00014191,2]
[399471164,1766395840256,-1000.0,0.00014191,2]
[399471165,1766395840266,-700.52699776,0.00014191,2]
[399471166,1766395840305,-299.47300224,0.00014191,2]
[399471167,1766395840314,-550.36391425,0.00014191,2]
[399471168,1766395840323,-226.21957714,0.00014191,2]
[399471169,1766395840335,-773.78042286,0.00014191,2]
[399471170,1766395840344,-302.21957714,0.00014191,2]
[399471243,1766395842907,-501.95815493,0.00014191,2]
[399471244,1766395842919,-393.36576144,0.00014191,2]
[399471245,1766395843171,-60.3676805,0.00014191,2]
[399471246,1766395843181,-1000.0,0.00014191,2]
[399471247,1766395843191,-1000.0,0.00014191,2]
[399471248,1766395843200,-1000.0,0.00014191,2]
[399471249,1766395843209,-1000.0,0.00014191,2]
[399471250,1766395843219,-166.66,0.00014224,2]
[399471251,1766395843237,-8831.94,0.00014224,2]
[399471252,1766395843248,-420.0,0.00014245,2]
[399471253,1766395843257,-600.0,0.00014288,2]
[399471254,1766395843267,-600.0,0.00014288,2]
[399471255,1766395843277,-600.0,0.00014288,2]
[399471256,1766395843287,-600.0,0.00014288,2]
[399471257,1766395843297,-600.0,0.00014288,2]
[399471258,1766395843307,-1680.0,0.00014288,2]
[399471259,1766395843317,-300.0,0.00014289,2]
[399471260,1766395843326,-300.0,0.00014289,2]
[399471261,1766395843335,-300.0,0.00014289,2]
[399471262,1766395843344,-300.0,0.00014289,2]
[399471263,1766395843354,-300.0,0.00014289,2]
[399471264,1766395843363,-27657.32,0.00014298,2]
[399471265,1766395843374,-200.0,0.00014325,2]
[399471266,1766395843384,-10279.41003921,0.0001439,2]
[399471267,1766395843393,-999.0,0.00014459,3]
[399471268,1766395843403,-166.66,0.00014487,2]
[399471269,1766395843412,-561.80172019,0.00014492,2]
[399471270,1766395843421,-3301.98750385,0.0001451,2]
[399471271,1766395843431,-165.56646338,0.00014729,2]
[399471272,1766395843441,-1502.21103807,0.00014739,2]
[399471273,1766395843450,-659.1358272,0.00014739,2]
[399471274,1766395843459,-597.93973627,0.00014739,2]
[399471275,1766395843468,-501.38196086,0.00014739,2]
[399471276,1766395843478,-1500.0,0.00014739,2]
[399471277,1766395843487,-1500.0,0.00014739,2]
[399471278,1766395843497,-1500.0,0.00014739,2]
[399471279,1766395843506,-1500.0,0.00014739,2]
[399471280,1766395843515,-1500.0,0.00014739,2]
[399471281,1766395843524,-1500.0,0.00014739,2]
[399471282,1766395843535,-1500.0,0.00014739,2]
[399471283,1766395843544,-500.0,0.00014739,2]
[399471284,1766395843554,-437.07935653,0.00014739,2]
[399471285,1766395843563,-1500.0,0.00014739,2]
[399471286,1766395843573,-1500.0,0.00014739,2]
[399471287,1766395843583,-1500.0,0.00014739,2]
[399471288,1766395843596,-1500.0,0.00014739,2]
[399471289,1766395843606,-1500.0,0.00014739,2]
[399471290,1766395843616,-1500.0,0.00014739,2]
[399471291,1766395843627,-1500.0,0.00014739,2]
[399471292,1766395843638,-166.66,0.0001475,2]
[399471293,1766395843652,-255.0,0.0001476,2]
[399471294,1766395843661,-561.80172019,0.00014894,2]
[399471295,1766395843672,-226.5471914,0.000149,2]
[399471296,1766395843682,-188.89049807,0.00014977,2]
[399471297,1766395843692,-151.0,0.00014982,2]
[399471298,1766395843709,-151.0,0.00014982,2]
[399471299,1766395843719,-5014.92,0.00014999,2]
[399471300,1766395843729,-2041.02448075,0.00015,2]
[399471301,1766395843739,-1344.90035388,0.00015,14]
[399471302,1766395843750,-7945.49825452,0.00015,2]
[399471303,1766395843759,-21356.21903813,0.00015,2]
[399471304,1766395843769,-1154.92232765,0.00015,2]
[399471305,1766395843779,-33588.22069818,0.00015,2]
[399471306,1766395843788,-166.66,0.00015013,2]
[399471307,1766395843802,-224.4,0.00015108,2]
[399471308,1766395843812,-261.72,0.00015121,2]
[399471309,1766395843822,-6332.52463304,0.00015161,2]
[399471310,1766395843832,-500.0,0.00015167,2]
[399471311,1766395843842,-500.0,0.00015167,2]
[399471312,1766395843854,-500.0,0.00015167,2]
[399471313,1766395843864,-500.0,0.00015167,2]
[399471314,1766395843873,-151.0,0.00015167,2]
[399471315,1766395843884,-500.0,0.00015167,2]
[399471316,1766395843893,-156.587,0.00015167,2]
[399471317,1766395843903,-628.59557162,0.00015167,2]
[399471318,1766395843914,-1001.75186687,0.00015167,2]
[399471319,1766395843924,-500.0,0.00015167,2]
[399471320,1766395843933,-162.380719,0.00015167,2]
[399471321,1766395843943,-500.0,0.00015167,2]
[399471322,1766395843952,-153.6660154,0.00015167,2]
[399471323,1766395843962,-253.23403961,0.00015167,2]
[399471324,1766395843972,-200.0,0.00015167,2]
[399471325,1766395843981,-500.0,0.00015167,2]
[399471326,1766395843991,-207.4,0.00015167,2]
[399471327,1766395844004,-500.0,0.00015167,2]
[399471328,1766395844014,-500.0,0.00015167,2]
[399471329,1766395844024,-215.0738,0.00015167,2]
[399471330,1766395844034,-500.0,0.00015167,2]
[399471331,1766395844043,-500.0,0.00015167,2]
[399471332,1766395844053,-500.0,0.00015167,2]
[399471333,1766395844063,-223.0315306,0.00015167,2]
[399471334,1766395844072,-500.0,0.00015167,2]
[399471335,1766395844083,-500.0,0.00015167,2]
[399471336,1766395844094,-500.0,0.00015167,2]
[399471337,1766395844105,-231.28369723,0.00015167,2]
[399471338,1766395844117,-500.0,0.00015167,2]
[399471339,1766395844128,-500.0,0.00015167,2]
[399471340,1766395844139,-500.0,0.00015167,2]
[399471341,1766395844149,-151.0,0.00015167,2]
[399471342,1766395844160,-239.84119403,0.00015167,2]
[399471343,1766395844170,-500.0,0.00015167,2]
[399471344,1766395844180,-500.0,0.00015167,2]
[399471345,1766395844190,-500.0,0.00015167,2]
[399471346,1766395844203,-500.0,0.00015167,2]
[399471347,1766395844212,-500.0,0.00015167,2]
[399471348,1766395844223,-500.0,0.00015167,2]
[399471349,1766395844233,-500.0,0.00015167,2]
[399471350,1766395844243,-500.0,0.00015167,2]
[399471351,1766395844253,-500.0,0.00015167,2]
[399471352,1766395844263,-259.02685211,0.00015167,2]
[399471353,1766395844272,-500.0,0.00015167,2]
[399471354,1766395844282,-500.0,0.00015167,2]
[399471355,1766395844291,-500.0,0.00015167,2]
[399471356,1766395844302,-500.0,0.00015167,2]
[399471357,1766395844312,-500.0,0.00015167,2]
[399471358,1766395844323,-500.0,0.00015167,2]
[399471359,1766395844332,-500.0,0.00015167,2]
[399471360,1766395844342,-500.0,0.00015167,2]
[399471361,1766395844352,-500.0,0.00015167,2]
[399471362,1766395844361,-500.0,0.00015167,2]
[399471363,1766395844371,-248.71531821,0.00015167,2]
[399471364,1766395844380,-257.91778498,0.00015167,2]
[399471365,1766395844390,-500.0,0.00015167,2]
[399471366,1766395844403,-500.0,0.00015167,2]
[399471367,1766395844420,-500.0,0.00015167,2]
[399471368,1766395844432,-500.0,0.00015167,2]
[399471369,1766395844442,-500.0,0.00015167,2]
[399471370,1766395844452,-250.0,0.00015167,2]
[399471371,1766395844462,-500.0,0.00015167,2]
[399471372,1766395844472,-500.0,0.00015167,2]
[399471373,1766395844482,-174.89555053,0.00015167,2]
[399471374,1766395845936,-75.10444947,0.00015167,2]
[399471375,1766395845947,-500.0,0.00015167,2]
[399471376,1766395845956,-250.0,0.00015167,2]
[399471377,1766395845967,-500.0,0.00015167,2]
[399471378,1766395845976,-26.89555053,0.00015167,2]
[399471379,1766395846095,-223.10444947,0.00015167,2]
[399471380,1766395846105,-250.0,0.00015167,2]
[399471381,1766395846115,-157.1076511,0.00015167,2]
[399471382,1766395846128,-92.8923489,0.00015167,2]
[399471383,1766395846137,-170.0076511,0.00015167,2]
[399471384,1766395846150,-91.57861306,0.00015167,2]
[399471385,1766395846160,-500.0,0.00015167,2]
[399471386,1766395846169,-500.0,0.00015167,2]
[399471387,1766395846179,-500.0,0.00015167,2]
[399471388,1766395846189,-500.0,0.00015167,2]
[399471389,1766395846199,-500.0,0.00015167,2]
[399471390,1766395846210,-500.0,0.00015167,2]
[399471391,1766395846219,-177.16582685,0.00015167,2]
[399471392,1766395846231,-269.99999995,0.00015167,2]
[399471423,1766396518691,162.77,6.828e-05,2]
[399471424,1766397032170,-246.72,0.00013234,2]
[399471425,1766397032179,-150.0,0.00013374,2]
[399471427,1766397032190,-218.0,0.00013442,2]
[399471429,1766397032199,-1200.0,0.00013442,2]
[399471431,1766397032208,-678.49781416,0.00013443,2]
[399471435,1766397032231,-13468.76218584,0.00013443,2]
[399471437,1766397032241,-745.843,0.00013613,2]
[399471439,1766397032250,-157.485,0.00013613,2]
[399471441,1766397032260,-150.0,0.00013642,2]
[399471443,1766397032270,-167.17091754,0.00013643,2]
[399471445,1766397032279,-174.79667951,0.00013643,2]
[399471446,1766397032289,-500.0,0.00013643,2]
[399471448,1766397032298,-161.53823888,0.00013643,2]
[399471450,1766397032307,-500.0,0.00013643,2]
[399471453,1766397032317,-500.37919946,0.00013643,2]
[399471455,1766397032326,-172.81941254,0.00013643,2]
[399471457,1766397032335,-163.15562332,0.00013643,2]
[399471460,1766397032344,-500.0,0.00013643,2]
[399471462,1766397032353,-500.0,0.00013643,2]
[399471464,1766397032362,-152.24771279,0.00013643,2]
[399471466,1766397032372,-176.72157044,0.00013643,2]
[399471467,1766397032381,-224.11516546,0.00013643,2]
[399471470,1766397032390,-500.0,0.00013643,2]
[399471471,1766397032400,-500.0,0.00013643,2]
[399471472,1766397032410,-500.0,0.00013643,2]
[399471473,1766397032419,-500.0,0.00013643,2]
[399471474,1766397032430,-500.0,0.00013643,2]
[399471475,1766397032441,-500.0,0.00013643,2]
[399471476,1766397032452,-500.0,0.00013643,2]
[399471477,1766397032462,-500.0,0.00013643,2]
[399471478,1766397032475,-500.0,0.00013643,2]
[399471479,1766397032484,-500.0,0.00013643,2]
[399471480,1766397032493,-169.3348032,0.00013643,2]
[399471481,1766397032502,-500.0,0.00013643,2]
[399471482,1766397032513,-500.0,0.00013643,2]
[399471483,1766397032522,-500.0,0.00013643,2]
[399471484,1766397032531,-500.0,0.00013643,2]
[399471485,1766397032541,-500.0,0.00013643,2]
[399471486,1766397032550,-500.0,0.00013643,2]
[399471487,1766397032559,-500.0,0.00013643,2]
[399471488,1766397032568,-500.0,0.00013643,2]
[399471489,1766397032578,-504.58016272,0.00013643,2]
[399471490,1766397032587,-459.78950383,0.00013643,2]
[399471491,1766397032596,-162.77,0.00013655,2]
[399471492,1766397032606,-1630.4016,0.00013791,2]
[399471493,1766397032615,-1217.26834282,0.00013805,2]
[399471494,1766397032624,-87684.29,0.00013848,2]
[399471495,1766397032633,-151.0,0.00013888,2]
[399471496,1766397032642,-500.0,0.0001389,2]
[399471497,1766397032653,-500.0,0.0001389,2]
[399471498,1766397032662,-500.0,0.0001389,2]
[399471499,1766397032671,-500.0,0.0001389,2]
[399471500,1766397032680,-294.2331637,0.0001389,2]
[399471501,1766397032689,-500.0,0.0001389,2]
[399471502,1766397032698,-500.0,0.0001389,2]
[399471503,1766397032707,-500.0,0.0001389,2]
[399471504,1766397032717,-500.0,0.0001389,2]
[399471505,1766397032726,-500.0,0.0001389,2]
[399471506,1766397032735,-500.0,0.0001389,2]
[399471507,1766397032745,-500.0,0.0001389,2]
[399471508,1766397032754,-500.0,0.0001389,2]
[399471509,1766397032763,-500.0,0.0001389,2]
[399471510,1766397032773,-500.0,0.0001389,2]
[399471511,1766397032782,-500.0,0.0001389,2]
[399471512,1766397032792,-500.0,0.0001389,2]
[399471513,1766397032801,-500.0,0.0001389,2]
[399471514,1766397032811,-500.0,0.0001389,2]
[399471515,1766397032820,-500.0,0.0001389,2]
[399471516,1766397032830,-500.0,0.0001389,2]
[399471517,1766397032839,-500.0,0.0001389,2]
[399471518,1766397032848,-500.0,0.0001389,2]
[399471519,1766397032858,-500.0,0.0001389,2]
[399471520,1766397032867,-500.0,0.0001389,2]
[399471521,1766397032876,-500.0,0.0001389,2]
[399471522,1766397032885,-500.0,0.0001389,2]
[399471523,1766397032895,-500.0,0.0001389,2]
[399471524,1766397032904,-500.0,0.0001389,2]
[399471525,1766397032913,-500.0,0.0001389,2]
[399471526,1766397032922,-500.0,0.0001389,2]
[399471527,1766397032932,-500.0,0.0001389,2]
[399471528,1766397032941,-500.0,0.0001389,2]
[399471529,1766397032951,-500.0,0.0001389,2]
[399471530,1766397032961,-500.0,0.0001389,2]
[399471531,1766397032970,-500.0,0.0001389,2]
[399471532,1766397032980,-500.0,0.0001389,2]
[399471533,1766397032989,-150.0,0.0001389,2]
[399471534,1766397032998,-500.0,0.0001389,2]
[399471535,1766397033008,-500.0,0.0001389,2]
[399471536,1766397033018,-500.0,0.0001389,2]
[399471537,1766397033027,-500.0,0.0001389,2]
[399471538,1766397033036,-500.0,0.0001389,2]
[399471539,1766397033046,-2147.07,0.0001389,2]
[399471540,1766397033055,-500.0,0.0001389,2]
[399471541,1766397033064,-500.0,0.0001389,2]
[399471542,1766397033074,-208866.70789132,0.00013891,2]
[399471543,1766397033623,-356830.521,0.00013891,2]
[399471544,1766397033635,-30817.96815083,0.00013891,2]
[399471545,1766397033648,-458.44747329,0.00013891,2]
[399471546,1766397033692,-502.88313328,0.00013891,2]
[399471547,1766397033710,-15320.68743986,0.00013891,2]
[399471548,1766397033721,-574.6,0.00013891,2]
[399471551,1766397037983,-183.24007483,0.0001389,2]
[399471552,1766397037992,-500.0,0.0001389,2]
[399471553,1766397038001,-498.43148083,0.00013891,2]
[399471554,1766397038088,-306.23050185,0.00013891,2]
[399471555,1766397038142,-385823.52292874,0.00013891,2]
[399471556,1766397038152,-246.72,0.00013969,2]
[399471557,1766397038162,-2387.2932499,0.00014005,2]
[399471558,1766397038171,-885.44942567,0.0001408,2]
[399471559,1766397038180,-500.0,0.0001409,2]
[399471560,1766397038190,-500.0,0.0001409,2]
[399471561,1766397038199,-500.0,0.0001409,2]
[399471562,1766397038210,-500.0,0.0001409,2]
[399471563,1766397038220,-500.0,0.0001409,2]
[399471564,1766397038230,-500.0,0.0001409,2]
[399471565,1766397038239,-500.0,0.0001409,2]
[399471566,1766397038249,-500.0,0.0001409,2]
[399471568,1766397038258,-500.0,0.0001409,2]
[399471570,1766397038268,-500.0,0.0001409,2]
[399471571,1766397038278,-509.63742065,0.0001409,2]
[399471572,1766397038287,-500.0,0.0001409,2]
[399471573,1766397038296,-500.0,0.0001409,2]
[399471575,1766397038305,-500.0,0.0001409,2]
[399471576,1766397038315,-500.0,0.0001409,2]
[399471577,1766397038324,-500.0,0.0001409,2]
[399471578,1766397038333,-500.0,0.0001409,2]
[399471579,1766397038342,-500.0,0.0001409,2]
[399471580,1766397038351,-518.52076054,0.0001409,2]
[399471582,1766397038361,-380.49841819,0.0001409,2]
[399471583,1766397038370,-500.0,0.0001409,2]
[399471585,1766397038380,-500.0,0.0001409,2]
[399471587,1766397038390,-500.0,0.0001409,2]
[399471589,1766397038400,-500.0,0.0001409,2]
[399471591,1766397038409,-500.0,0.0001409,2]
[399471594,1766397038419,-500.0,0.0001409,2]
[399471597,1766397038428,-500.0,0.0001409,2]
[399471600,1766397038438,-500.0,0.0001409,2]
[399471602,1766397038447,-500.0,0.0001409,2]
[399471603,1766397038456,-500.0,0.0001409,2]
[399471604,1766397038469,-500.0,0.0001409,2]
[399471605,1766397038478,-531.19217755,0.0001409,2]
[399471606,1766397038487,-500.0,0.0001409,2]
[399471607,1766397038497,-335.96353796,0.0001409,2]
[399471608,1766397038507,-500.0,0.0001409,2]
[399471609,1766397038516,-500.0,0.0001409,2]
[399471610,1766397038525,-500.0,0.0001409,2]
[399471611,1766397038535,-505.95717234,0.0001409,2]
[399471612,1766397038545,-500.0,0.0001409,2]
[399471613,1766397038554,-500.0,0.0001409,2]
[399471614,1766397038563,-500.0,0.0001409,2]
[399471615,1766397038573,-500.0,0.0001409,2]
[399471616,1766397038582,-500.0,0.0001409,2]
[399471617,1766397038591,-500.0,0.0001409,2]
[399471618,1766397038601,-500.0,0.0001409,2]
[399471619,1766397038620,-510.77645617,0.0001409,2]
[399471620,1766397038629,-500.0,0.0001409,2]
[399471621,1766397038638,-500.0,0.0001409,2]
[399471622,1766397038647,-501.94615261,0.0001409,2]
[399471623,1766397038656,-500.0,0.0001409,2]
[399471624,1766397038666,-2147.07,0.00014164,2]
[399471625,1766397038675,-151.0,0.00014188,2]
[399471626,1766397038685,-1000.0,0.00014191,2]
[399471627,1766397038694,-1000.0,0.00014191,2]
[399471628,1766397038704,-535.43855747,0.00014191,2]
[399471629,1766397038714,-667.2591655,0.00014191,2]
[399471630,1766397038723,-1000.0,0.00014191,2]
[399471631,1766397038732,-537.36765375,0.00014191,2]
[399471632,1766397038742,-1000.0,0.00014191,2]
[399471633,1766397038752,-1000.0,0.00014191,2]
[399471634,1766397038761,-1000.0,0.00014191,2]
[399471635,1766397038771,-1000.0,0.00014191,2]
[399471636,1766397038780,-1072.96293358,0.00014191,2]
[399471637,1766397038789,-1000.0,0.00014191,2]
[399471638,1766397038798,-1000.0,0.00014191,2]
[399471639,1766397038808,-1000.0,0.00014191,2]
[399471640,1766397038817,-1000.81193052,0.00014191,2]
[399471641,1766397038827,-505.45508162,0.00014191,2]
[399471642,1766397038836,-630.28190868,0.00014191,2]
[399471643,1766397038845,-1000.0,0.00014191,2]
[399471644,1766397038855,-1000.0,0.00014191,2]
[399471645,1766397038864,-1961.52,0.00014202,2]
[399471646,1766397038873,-508.21699251,0.00014237,2]
[399471647,1766397038883,-508.78923664,0.00014237,2]
[399471648,1766397038892,-467.18251007,0.00014237,2]
[399471649,1766397038902,-500.0,0.00014237,2]
[399471650,1766397038912,-505.83670147,0.00014237,2]
[399471651,1766397038921,-500.0,0.00014237,2]
[399471652,1766397038931,-500.0,0.00014237,2]
[399471653,1766397038940,-1217.26834277,0.00014321,2]
[399471654,1766397038950,-1600.0,0.00014369,2]
[399471655,1766397038959,-2147.07,0.00014438,2]
[399471656,1766397038969,-500.0,0.00014466,2]
[399471657,1766397038979,-179.52,0.00014549,2]
[399471658,1766397038989,-315.82,0.00014549,2]
[399471659,1766397038999,-2500.0,0.00014557,2]
[399471660,1766397039008,-200.0,0.00014598,2]
[399471661,1766397039018,-246.72,0.00014705,2]
[399471662,1766397039027,-600.0,0.00014712,2]
[399471663,1766397039037,-600.0,0.00014712,2]
[399471664,1766397039047,-600.0,0.00014712,2]
[399471665,1766397039056,-600.0,0.00014712,2]
[399471666,1766397039066,-600.0,0.00014712,2]
[399471667,1766397039076,-300.0,0.00014712,2]
[399471668,1766397039086,-300.0,0.00014712,2]
[399471669,1766397039096,-300.0,0.00014712,2]
[399471670,1766397039105,-300.0,0.00014712,2]
[399471671,1766397039115,-300.0,0.00014712,2]
[399471672,1766397039124,-2147.07,0.00014712,2]
[399471673,1766397039133,-469.51043734,0.00014738,2]
[399471674,1766397039144,-437.14852253,0.00014739,2]
[399471675,1766397039153,-1500.0,0.00014739,2]
[399471676,1766397039163,-1500.0,0.00014739,2]
[399471677,1766397039173,-1500.0,0.00014739,2]
[399471678,1766397039183,-1500.0,0.00014739,2]
[399471679,1766397039192,-1500.0,0.00014739,2]
[399471680,1766397039202,-1500.0,0.00014739,2]
[399471681,1766397039212,-1500.0,0.00014739,2]
[399471682,1766397039221,-1500.0,0.00014739,2]
[399471683,1766397039231,-255.0,0.0001476,2]
[399471684,1766397039240,-1680.0,0.00014786,2]
[399471685,1766397039250,-1217.26834277,0.00014837,2]
[399471686,1766397039260,-151.0,0.00014879,2]
[399471687,1766397039269,-224.06009191,0.00014916,2]
[399471688,1766397039279,-2147.07,0.00014986,2]
[399471689,1766397039289,-200.0,0.00015075,2]
[399471690,1766397039301,-442.80207677,0.00015131,2]
[399471691,1766397039310,-500.0,0.0001516,2]
[399471692,1766397039320,-214.74412357,0.0001516,2]
[399471693,1766397039329,-500.0,0.0001516,2]
[399471694,1766397039340,-907.1735,0.00015161,2]
[399471695,1766397039351,-151.0,0.00015164,2]
[399471696,1766397039360,-151.0,0.00015164,2]
[399471697,1766397039370,-511.62107373,0.00015166,2]
[399471698,1766397039380,-45415.9484262,0.00015167,2]
[399471699,1766397039389,-2445.0741742,0.00015167,2]
[399471700,1766397039399,-200.0,0.00015167,2]
[399471701,1766397039408,-323.55857022,0.00015167,2]
[399471702,1766397039417,-151.0,0.00015167,2]
[399471703,1766397039426,-152.0,0.00015167,2]
[399471704,1766397039435,-152.0,0.00015167,2]
[399471705,1766397039444,-1256.0,0.00015167,2]
[399471706,1766397039454,-152.0,0.00015167,2]
[399471707,1766397039463,-1256.0,0.00015167,2]
[399471708,1766397039476,-152.0,0.00015167,2]
[399471709,1766397039485,-1256.0,0.00015167,2]
[399471710,1766397039495,-152.0,0.00015167,2]
[399471711,1766397039504,-1256.0,0.00015167,2]
[399471712,1766397039514,-152.0,0.00015167,2]
[399471713,1766397039523,-155.50239982,0.00015167,2]
[399471714,1766397039532,-1256.0,0.00015167,2]
[399471715,1766397039542,-204.33438108,0.00015167,2]
[399471716,1766397039551,-152.0,0.00015167,2]
[399471717,1766397039560,-1256.0,0.00015167,2]
[399471718,1766397039569,-152.0,0.00015167,2]
[399471719,1766397039578,-1256.0,0.00015167,2]
[399471720,1766397039588,-152.0,0.00015167,2]
[399471721,1766397039597,-1256.0,0.00015167,2]
[399471722,1766397039606,-152.0,0.00015167,2]
[399471723,1766397039616,-152.0,0.00015167,2]
[399471724,1766397039625,-1256.0,0.00015167,2]
[399471725,1766397039635,-153.0,0.00015167,2]
[399471726,1766397039644,-1074.39262391,0.00015167,2]